[Event "SixDays Budapest IM-A 09-2024"]
[Site "Budapest"]
[Date "2024.09.25"]
[Round "3.5"]
[White "Ramsdal, Jens Albert"]
[Black "Kwon, Sehyun"]
[Result "0-1"]
[ECO "D38"]
[WhiteElo "2328"]
[BlackElo "2248"]
[Annotator "RC"]
[PlyCount "98"]
[EventDate "2024.09.24"]
[EventType "tourn"]
[EventCountry "HUN"]
[SourceTitle "playchess.com"]
[Source "ChessBase"]
[SourceQuality "1"]
[TimeControl "5400+30"]

1. d4 {[%emt 0:02:40]} d5 {[%emt 0:00:30]} 2. c4 {[%emt 0:00:22]} e6 {[%emt 0:00:07]} 3. Nc3 {[%emt 0:00:52]} Bb4 {[%emt 0:00:56]} 4. Nf3 {[%emt 0:01:38]} Nf6 {[%emt 0:00:17]} 5. Qa4+ {[%emt 0:00:46]} Nc6 {[%emt 0:00:13]} 6. e3 {[%emt 0:01:28]} O-O {[%emt 0:00:14]} 7. Bd2 {[%emt 0:00:28]} dxc4 {[%emt 0:03:27]} 8. Bxc4 {[%emt 0:00:33]} Bd6 {[%emt 0:00:27]} 9. Nb5 {[%emt 0:15:07]} Be7 {[%emt 0:04:06]} 10. Qc2 {[%emt 0:01:14]} a6 {[%emt 0:01:53]} 11. Nc3 {[%emt 0:00:08]} b5 {[%emt 0:03:27]} 12. Be2 {[%emt 0:00:51]} Bb7 {[%emt 0:03:42]} 13. O-O {[%emt 0:02:52]} Bd6 {[%emt 0:02:47]} 14. a4 {[%emt 0:07:12]} b4 {[%emt 0:16:11]} 15. Na2 {[%emt 0:00:32]} Qe7 {[%emt 0:06:33]} 16. Qb3 {[%emt 0:22:32]} Rab8 {[%emt 0:06:28]} 17. Ne5 {[%emt 0:13:36]} Nxe5 {[%emt 0:09:39]} 18. dxe5 {[%emt 0:00:03]} Bxe5 {[%emt 0:00:05]} 19. Qxb4 {[%emt 0:03:05]} c5 {[%emt 0:00:58]} 20. Qh4 {[%emt 0:03:16]} Bxb2 {[%emt 0:04:06]} 21. Rab1 {[%emt 0:00:03]} Be4 {[%emt 0:05:18]} 22. Rbe1 {[%emt 0:00:04]} Qd7 {[%emt 0:05:46]} 23. Bc3 {[%emt 0:04:17]} Qxa4 {[%emt 0:03:28]} 24. Bxb2 {[%emt 0:00:16]} Rxb2 {[%emt 0:00:18]} 25. Nc3 {[%emt 0:00:06]} Qc6 {[%emt 0:07:46]} 26. Nxe4 {[%emt 0:00:56]} Nxe4 {[%emt 0:02:30]} 27. Bf3 {[%emt 0:00:32]} Rb4 {[%emt 0:00:30]} 28. Rc1 {[%emt 0:01:10]} f5 {[%emt 0:06:14]} 29. Rfd1 {[%emt 0:00:17]} Qc7 {[%emt 0:00:43]} 30. Bxe4 {[%emt 0:03:09]} Rxe4 {[%emt 0:00:12]} 31. Qg3 {[%emt 0:00:02]} f4 {[%emt 0:03:00]} 32. exf4 {[%emt 0:00:08]} Rexf4 {[%emt 0:00:52]} 33. Rc2 {[%emt 0:00:29]} c4 {[%emt 0:00:22]} 34. Qe3 {[%emt 0:04:47]} Qc6 {[%emt 0:00:44]} 35. Re1 {[%emt 0:01:32]} R8f6 {[%emt 0:01:22]} 36. g3 {[%emt 0:01:45]} Rf3 {[%emt 0:00:25]} 37. Qd4 {[%emt 0:00:25]} c3 {[%emt 0:01:12]} 38. Rd1 {[%emt 0:06:02]} h6 {[%emt 0:00:21]} 39. Qb4 {[%emt 0:01:10]} Qb5 {[%emt 0:01:09]} 40. Qd4 {[%emt 0:00:46]} e5 {[%emt 0:00:40]} 41. Qe4 {[%emt 0:00:43]} Qb6 {[%emt 0:00:28]} 42. Rf1 {[%emt 0:01:17]} Qd4 {[%emt 0:00:11]} 43. Re1 {[%emt 0:01:23]} R6f5 {[%emt 0:01:31]} 44. Qa8+ {[%emt 0:00:53]} Kh7 {[%emt 0:00:09]} 45. Qe4 {[%emt 0:00:10]} h5 {[%emt 0:00:31]} 46. Re3 {[%emt 0:01:06]} g6 {[%emt 0:01:05]} 47. Qb7+ {[%emt 0:00:28]} Rf7 {[%emt 0:00:24]} 48. Qe4 {[%emt 0:00:48]} Rxe3 {[%emt 0:00:19]} 49. Qxd4 {[%emt 0:00:22]} Re1+ {[%emt 0:00:12]} 0-1

[Event "SixDays Budapest IM-A 09-2024"]
[Site "Budapest"]
[Date "2024.09.26"]
[Round "4.1"]
[White "Bashylina, Luisa"]
[Black "Kwon, Sehyun"]
[Result "0-1"]
[ECO "E48"]
[WhiteElo "2124"]
[BlackElo "2248"]
[Annotator "RC"]
[PlyCount "78"]
[EventDate "2024.09.24"]
[EventType "tourn"]
[EventCountry "HUN"]
[SourceTitle "playchess.com"]
[Source "ChessBase"]
[SourceQuality "1"]
[TimeControl "5400+30"]

1. d4 {[%emt 0:00:03]} Nf6 {[%emt 0:02:57]} 2. c4 {[%emt 0:00:03]} e6 {[%emt 0:00:25]} 3. Nc3 {[%emt 0:00:05]} Bb4 {[%emt 0:00:05]} 4. e3 {[%emt 0:00:04]} O-O {[%emt 0:00:20]} 5. Bd3 {[%emt 0:00:02]} d5 {[%emt 0:01:04]} 6. Nge2 {[%emt 0:00:11]} dxc4 {[%emt 0:01:29]} 7. Bxc4 {[%emt 0:00:05]} c5 {[%emt 0:00:10]} 8. a3 {[%emt 0:00:04]} Bxc3+ {[%emt 0:00:39]} 9. bxc3 {[%emt 0:00:05]} Qc7 {[%emt 0:00:18]} 10. Bd3 {[%emt 0:00:05]} e5 {[%emt 0:03:35]} 11. O-O {[%emt 0:07:27]} Nc6 {[%emt 0:01:56]} 12. Ng3 {[%emt 0:08:45]} Be6 {[%emt 0:01:23]} 13. f4 {[%emt 0:02:57]} exd4 {[%emt 0:02:45]} 14. cxd4 {[%emt 0:00:21]} Rad8 {[%emt 0:01:14]} 15. Nh5 {[%emt 0:03:54]} Nxh5 {[%emt 0:18:08]} 16. Qxh5 {[%emt 0:00:06]} f5 {[%emt 0:00:40]} 17. Bb2 {[%emt 0:16:18]} cxd4 {[%emt 0:14:07]} 18. e4 {[%emt 0:02:54]} Qd7 {[%emt 0:05:51]} 19. Rad1 {[%emt 0:08:14]} a6 {[%emt 0:04:33]} 20. Qh4 {[%emt 0:08:43]} b5 {[%emt 0:08:00]} 21. Rc1 {[%emt 0:06:37]} Bc4 {[%emt 0:06:20]} 22. Rxc4 {[%emt 0:13:00]} bxc4 {[%emt 0:01:18]} 23. Bxc4+ {[%emt 0:00:04]} Kh8 {[%emt 0:00:11]} 24. exf5 {[%emt 0:01:12]} Qxf5 {[%emt 0:07:05]} 25. Ba2 {[%emt 0:02:33]} Qb5 {[%emt 0:02:28]} 26. Bb1 {[%emt 0:02:24]} d3 {[%emt 0:00:34]} 27. Ba1 {[%emt 0:00:44]} Qc5+ {[%emt 0:02:58]} 28. Kh1 {[%emt 0:00:11]} Qxa3 {[%emt 0:00:44]} 29. Qh3 {[%emt 0:03:27]} Qxa1 {[%emt 0:05:27]} 30. Bxd3 {[%emt 0:00:08]} Rxd3 {[%emt 0:00:12]} 31. Qxd3 {[%emt 0:00:07]} Qa4 {[%emt 0:00:38]} 32. Qd6 {[%emt 0:02:02]} Rd8 {[%emt 0:00:43]} 33. Qe6 {[%emt 0:02:45]} Qxf4 {[%emt 0:01:53]} 34. Re1 {[%emt 0:00:19]} Rf8 {[%emt 0:00:22]} 35. h3 {[%emt 0:00:36]} Qf6 {[%emt 0:00:38]} 36. Qd5 {[%emt 0:00:25]} Nd4 {[%emt 0:00:26]} 37. Ra1 {[%emt 0:01:27]} Ne2 {[%emt 0:02:41]} 38. Qa5 {[%emt 0:00:39]} Ng3+ {[%emt 0:00:44]} 39. Kh2 {[%emt 0:00:12]} Qd6 {[%emt 0:00:19]} 0-1

[Event "SixDays Budapest IM-A 09-2024"]
[Site "Budapest"]
[Date "2024.09.26"]
[Round "4.2"]
[White "Bashirov, Kemal"]
[Black "Ramsdal, Jens Albert"]
[Result "1-0"]
[ECO "D41"]
[WhiteElo "2328"]
[BlackElo "2328"]
[Annotator "RC"]
[PlyCount "121"]
[EventDate "2024.09.24"]
[EventType "tourn"]
[EventCountry "HUN"]
[SourceTitle "playchess.com"]
[Source "ChessBase"]
[SourceQuality "1"]
[TimeControl "5400+30"]

1. d4 {[%emt 0:00:02]} e6 {[%emt 0:02:44]} 2. Nf3 {[%emt 0:01:05]} Nf6 {[%emt 0:00:09]} 3. c4 {[%emt 0:00:06]} d5 {[%emt 0:00:04]} 4. Nc3 {[%emt 0:00:03]} c5 {[%emt 0:00:05]} 5. cxd5 {[%emt 0:00:15]} Nxd5 {[%emt 0:00:08]} 6. e4 {[%emt 0:01:41]} Nxc3 {[%emt 0:00:06]} 7. bxc3 {[%emt 0:00:02]} cxd4 {[%emt 0:00:08]} 8. cxd4 {[%emt 0:00:02]} Bb4+ {[%emt 0:00:07]} 9. Bd2 {[%emt 0:00:04]} Bxd2+ {[%emt 0:00:05]} 10. Qxd2 {[%emt 0:00:03]} O-O {[%emt 0:00:13]} 11. Bc4 {[%emt 0:00:04]} Nd7 {[%emt 0:00:29]} 12. O-O {[%emt 0:00:54]} b6 {[%emt 0:00:12]} 13. d5 {[%emt 0:19:09]} Nc5 {[%emt 0:03:46]} 14. Rad1 {[%emt 0:14:53]} exd5 {[%emt 0:15:56]} 15. exd5 {[%emt 0:03:03]} Bg4 {[%emt 0:04:40]} 16. Qf4 {[%emt 0:07:53]} Bxf3 {[%emt 0:00:18]} 17. gxf3 {[%emt 0:00:02]} Qf6 {[%emt 0:11:23]} 18. Qxf6 {[%emt 0:01:47]} gxf6 {[%emt 0:00:02]} 19. Rfe1 {[%emt 0:05:58]} Rfe8 {[%emt 0:01:12]} 20. Re3 {[%emt 0:16:57]} Rxe3 {[%emt 0:02:37]} 21. fxe3 {[%emt 0:00:04]} Kf8 {[%emt 0:00:05]} 22. Kf2 {[%emt 0:05:52]} Rd8 {[%emt 0:01:08]} 23. e4 {[%emt 0:00:59]} Nd7 {[%emt 0:05:53]} 24. Bb5 {[%emt 0:01:45]} Nc5 {[%emt 0:01:11]} 25. Ke3 {[%emt 0:00:57]} a6 {[%emt 0:06:44]} 26. Bc6 {[%emt 0:01:20]} b5 {[%emt 0:01:11]} 27. Rc1 {[%emt 0:02:25]} Na4 {[%emt 0:01:24]} 28. Kd4 {[%emt 0:02:56]} Nb6 {[%emt 0:00:53]} 29. f4 {[%emt 0:01:54]} Nc4 {[%emt 0:02:15]} 30. a4 {[%emt 0:04:01]} Nd2 {[%emt 0:01:47]} 31. Kd3 {[%emt 0:01:43]} Nf3 {[%emt 0:03:24]} 32. Ke3 {[%emt 0:01:39]} Nxh2 {[%emt 0:00:45]} 33. Rh1 {[%emt 0:01:57]} Ng4+ {[%emt 0:00:06]} 34. Kf3 {[%emt 0:00:03]} f5 {[%emt 0:00:17]} 35. e5 {[%emt 0:01:21]} bxa4 {[%emt 0:02:25]} 36. Rxh7 {[%emt 0:01:38]} a3 {[%emt 0:00:02]} 37. Rh1 {[%emt 0:01:37]} Rb8 {[%emt 0:01:30]} 38. d6 {[%emt 0:00:34]} a2 {[%emt 0:05:28]} 39. Bd5 {[%emt 0:01:45]} Rb1 {[%emt 0:06:25]} 40. Rh8+ {[%emt 0:00:03]} Kg7 {[%emt 0:00:01]} 41. Bxa2 {[%emt 0:00:05]} Rf1+ {[%emt 0:00:05]} 42. Ke2 {[%emt 0:00:04]} Rf2+ {[%emt 0:00:04]} 43. Ke1 {[%emt 0:00:05]} Rxa2 {[%emt 0:13:23]} 44. d7 {[%emt 0:00:03]} Ra1+ {[%emt 0:00:24]} 45. Ke2 {[%emt 0:00:07]} Kxh8 {[%emt 0:02:38]} 46. d8=Q+ {[%emt 0:00:05]} Kh7 {[%emt 0:00:05]} 47. Qe7 {[%emt 0:00:39]} Ra2+ {[%emt 0:01:36]} 48. Kf3 {[%emt 0:00:18]} Nh2+ {[%emt 0:00:18]} 49. Kg3 {[%emt 0:01:06]} Nf1+ {[%emt 0:00:09]} 50. Kh4 {[%emt 0:00:28]} Rh2+ {[%emt 0:00:16]} 51. Kg5 {[%emt 0:00:04]} Rg2+ {[%emt 0:00:08]} 52. Kxf5 {[%emt 0:00:05]} Rg7 {[%emt 0:01:36]} 53. Qh4+ {[%emt 0:00:47]} Kg8 {[%emt 0:00:01]} 54. Qd8+ {[%emt 0:00:40]} Kh7 {[%emt 0:00:01]} 55. e6 {[%emt 0:01:57]} Ng3+ {[%emt 0:00:51]} 56. Ke5 {[%emt 0:00:03]} fxe6 {[%emt 0:00:14]} 57. Kxe6 {[%emt 0:00:04]} Rg6+ {[%emt 0:01:41]} 58. Ke5 {[%emt 0:00:04]} Nh5 {[%emt 0:00:32]} 59. f5 {[%emt 0:01:11]} Rf6 {[%emt 0:01:24]} 60. Qe7+ {[%emt 0:01:06]} Kh6 {[%emt 0:01:01]} 61. Qxf6+ {[%emt 0:00:16]} 1-0

[Event "SixDays Budapest IM-A 09-2024"]
[Site "Budapest"]
[Date "2024.09.26"]
[Round "4.3"]
[White "Pavan Karthikeya Varma Gunturi"]
[Black "Boyer, Mahel"]
[Result "1/2-1/2"]
[ECO "C00"]
[WhiteElo "2056"]
[BlackElo "2489"]
[Annotator "RC"]
[PlyCount "97"]
[EventDate "2024.09.24"]
[EventType "tourn"]
[EventCountry "HUN"]
[SourceTitle "playchess.com"]
[Source "ChessBase"]
[SourceQuality "1"]
[TimeControl "5400+30"]

1. e4 {[%emt 0:00:05]} a6 {[%emt 0:03:01]} 2. d4 {[%emt 0:00:46]} e6 {[%emt 0:00:02]} 3. Nf3 {[%emt 0:01:15]} d5 {[%emt 0:00:07]} 4. Nbd2 {[%emt 0:00:52]} c5 {[%emt 0:00:08]} 5. exd5 {[%emt 0:03:20]} exd5 {[%emt 0:00:05]} 6. c3 {[%emt 0:01:40]} Nc6 {[%emt 0:02:50]} 7. dxc5 {[%emt 0:09:34]} Bxc5 {[%emt 0:00:06]} 8. Nb3 {[%emt 0:01:21]} Ba7 {[%emt 0:00:32]} 9. h3 {[%emt 0:03:44]} Nf6 {[%emt 0:01:59]} 10. Bd3 {[%emt 0:05:15]} O-O {[%emt 0:00:09]} 11. Be3 {[%emt 0:08:23]} Bxe3 {[%emt 0:02:02]} 12. fxe3 {[%emt 0:00:08]} Re8 {[%emt 0:00:08]} 13. Qd2 {[%emt 0:02:03]} Qe7 {[%emt 0:01:50]} 14. O-O-O {[%emt 0:03:59]} Qxe3 {[%emt 0:02:35]} 15. Qxe3 {[%emt 0:00:16]} Rxe3 {[%emt 0:00:05]} 16. Rhe1 {[%emt 0:00:07]} Rxe1 {[%emt 0:00:28]} 17. Rxe1 {[%emt 0:00:10]} Kf8 {[%emt 0:00:24]} 18. Kd2 {[%emt 0:12:49]} b6 {[%emt 0:01:00]} 19. Nbd4 {[%emt 0:03:18]} Bb7 {[%emt 0:02:28]} 20. Nxc6 {[%emt 0:03:37]} Bxc6 {[%emt 0:00:05]} 21. Ne5 {[%emt 0:00:30]} Bb7 {[%emt 0:00:25]} 22. g4 {[%emt 0:02:20]} Re8 {[%emt 0:01:00]} 23. h4 {[%emt 0:08:50]} h6 {[%emt 0:04:45]} 24. g5 {[%emt 0:03:27]} hxg5 {[%emt 0:00:36]} 25. hxg5 {[%emt 0:02:11]} Ne4+ {[%emt 0:00:03]} 26. Bxe4 {[%emt 0:00:36]} Rxe5 {[%emt 0:00:04]} 27. Bd3 {[%emt 0:00:23]} Rxg5 {[%emt 0:00:06]} 28. Re2 {[%emt 0:00:34]} Rh5 {[%emt 0:05:55]} 29. Rf2 {[%emt 0:00:15]} Rh6 {[%emt 0:00:08]} 30. c4 {[%emt 0:00:53]} a5 {[%emt 0:00:39]} 31. b3 {[%emt 0:00:47]} f6 {[%emt 0:04:03]} 32. a3 {[%emt 0:00:32]} g5 {[%emt 0:00:51]} 33. Bf5 {[%emt 0:00:42]} Rh4 {[%emt 0:00:22]} 34. Kc3 {[%emt 0:00:22]} dxc4 {[%emt 0:01:20]} 35. bxc4 {[%emt 0:00:09]} Rf4 {[%emt 0:00:02]} 36. Rxf4 {[%emt 0:00:25]} gxf4 {[%emt 0:00:01]} 37. Bh3 {[%emt 0:00:26]} Kg7 {[%emt 0:00:26]} 38. Kd4 {[%emt 0:00:22]} Kg6 {[%emt 0:01:21]} 39. c5 {[%emt 0:00:15]} b5 {[%emt 0:00:05]} 40. Bd7 {[%emt 0:00:36]} Ba6 {[%emt 0:15:54]} 41. c6 {[%emt 0:13:41]} f3 {[%emt 0:01:29]} 42. Ke3 {[%emt 0:01:45]} b4 {[%emt 0:00:12]} 43. axb4 {[%emt 0:02:28]} axb4 {[%emt 0:00:04]} 44. Be6 {[%emt 0:00:47]} f5 {[%emt 0:01:49]} 45. c7 {[%emt 0:01:59]} f2 {[%emt 0:01:29]} 46. Kxf2 {[%emt 0:00:35]} Kf6 {[%emt 0:00:11]} 47. c8=Q {[%emt 0:00:32]} Bxc8 {[%emt 0:00:05]} 48. Bxc8 {[%emt 0:00:05]} b3 {[%emt 0:00:09]} 49. Ba6 {[%emt 0:00:09]} 1/2-1/2

[Event "SixDays Budapest IM-A 09-2024"]
[Site "Budapest"]
[Date "2024.09.26"]
[Round "4.4"]
[White "Pacher, Milan"]
[Black "Krishna C R G"]
[Result "1/2-1/2"]
[ECO "C07"]
[WhiteElo "2343"]
[BlackElo "2425"]
[Annotator "TA"]
[PlyCount "50"]
[EventDate "2024.09.24"]
[EventType "tourn"]
[EventCountry "HUN"]
[SourceTitle "playchess.com"]
[Source "ChessBase"]
[SourceQuality "1"]
[TimeControl "5400+30"]

{[%evp 21,50,0,11,15,15,6,10,12,14,0,16,0,0,-12,0,0,7,0,0,0,0,-15,-12,-14,-4,-5,-10,-14,-12,-12,-11]} 1. e4 {[%emt 0:09:14]} e6 {[%emt 0:01:02]} 2. d4 {[%emt 0:00:03]} d5 {[%emt 0:00:05]} 3. Nd2 {[%emt 0:00:06]} c5 {[%emt 0:00:47]} 4. exd5 {[%emt 0:00:06]} Qxd5 {[%emt 0:00:03]} 5. Ngf3 {[%emt 0:00:06]} cxd4 {[%emt 0:00:08]} 6. Bc4 {[%emt 0:00:04]} Qd7 {[%emt 0:00:05]} 7. O-O {[%emt 0:00:07]} Nc6 {[%emt 0:00:03]} 8. Nb3 {[%emt 0:00:13]} Nf6 {[%emt 0:00:39]} 9. Nbxd4 {[%emt 0:00:07]} Nxd4 {[%emt 0:00:07]} 10. Qxd4 {[%emt 0:00:04]} Qxd4 {[%emt 0:00:25]} 11. Nxd4 {[%emt 0:00:05]} a6 {[%emt 0:00:22] The position is equal.} 12. c3 {[%emt 0:00:05]} Bd6 {[%emt 0:15:16]} 13. Bg5 {[%emt 0:01:36]} Bd7 {[%emt 0:04:59]} 14. Rad1 {[%emt 0:00:07]} Bc7 {[%emt 0:01:04]} 15. Bh4 {[%emt 0:05:06]} O-O-O {[%emt 0:00:59]} 16. Nf3 {[%emt 0:00:26][%cal Bd4f3,Bf3e5,Be5c4][%mdl 32]} Rhf8 {[%emt 0:17:42]} 17. Bg3 {[%emt 0:03:19]} Ne4 {[%emt 0:03:34]} 18. Bxc7 {[%emt 0:01:28]} Kxc7 {[%emt 0:00:02]} 19. Rd4 {[%emt 0:00:11]} Nd6 {[%emt 0:05:32]} 20. Ne5 {[%emt 0:02:29]} Bc8 {[%emt 0:06:41] [#] Hoping for ...f6.} 21. Bb3 {[%emt 0:00:05]} f6 {[%emt 0:01:20]} 22. Nc4 {[%emt 0:00:08]} Nf5 {[%emt 0:03:45]} 23. Rxd8 {[%emt 0:00:06]} Rxd8 {[%emt 0:00:02]} 24. Rd1 {[%emt 0:00:06]} Rxd1+ {[%emt 0:00:11]} 25. Bxd1 {[%emt 0:00:03]} e5 {A rather calm draw.   Weighted Error Value: White=0.05 (flawless) /Black=0.03 (flawless) .  OK:         	White=5     	Black=6} 1/2-1/2

[Event "SixDays Budapest IM-A 09-2024"]
[Site "Budapest"]
[Date "2024.09.26"]
[Round "4.5"]
[White "Wadifa, Ahmed"]
[Black "Kao, Jamison Edrich"]
[Result "1-0"]
[ECO "B32"]
[WhiteElo "1988"]
[BlackElo "2125"]
[Annotator "RC"]
[PlyCount "117"]
[EventDate "2024.09.24"]
[EventType "tourn"]
[EventCountry "HUN"]
[SourceTitle "playchess.com"]
[Source "ChessBase"]
[SourceQuality "1"]
[TimeControl "5400+30"]

1. e4 {[%emt 0:00:38]} c5 {[%emt 0:02:40]} 2. Nf3 {[%emt 0:00:09]} Nc6 {[%emt 0:00:19]} 3. d4 {[%emt 0:00:09]} cxd4 {[%emt 0:00:03]} 4. Nxd4 {[%emt 0:00:06]} Qb6 {[%emt 0:00:32]} 5. Nb3 {[%emt 0:01:38]} Nf6 {[%emt 0:00:49]} 6. Bd3 {[%emt 0:00:37]} e6 {[%emt 0:04:47]} 7. O-O {[%emt 0:01:35]} Ne5 {[%emt 0:06:43]} 8. Nc3 {[%emt 0:06:36]} a6 {[%emt 0:11:24]} 9. Qe2 {[%emt 0:03:57]} Be7 {[%emt 0:00:41]} 10. Kh1 {[%emt 0:01:29]} d6 {[%emt 0:01:03]} 11. f4 {[%emt 0:02:02]} Nxd3 {[%emt 0:00:07]} 12. cxd3 {[%emt 0:00:17]} O-O {[%emt 0:12:58]} 13. Be3 {[%emt 0:09:49]} Qd8 {[%emt 0:00:13]} 14. a4 {[%emt 0:04:04]} e5 {[%emt 0:03:04]} 15. fxe5 {[%emt 0:07:27]} dxe5 {[%emt 0:00:06]} 16. a5 {[%emt 0:00:37]} Bg4 {[%emt 0:04:36]} 17. Qd2 {[%emt 0:00:47]} Rc8 {[%emt 0:01:23]} 18. Na4 {[%emt 0:04:37]} Nh5 {[%emt 0:02:55]} 19. Nb6 {[%emt 0:03:17]} Rc6 {[%emt 0:00:08]} 20. Nd5 {[%emt 0:00:06]} Bh4 {[%emt 0:00:20]} 21. Rac1 {[%emt 0:02:00]} Rg6 {[%emt 0:07:51]} 22. Bb6 {[%emt 0:06:28]} Rxb6 {[%emt 0:16:54]} 23. axb6 {[%emt 0:03:59]} Ng3+ {[%emt 0:06:26]} 24. hxg3 {[%emt 0:10:20]} Bxg3 {[%emt 0:00:08]} 25. Rf6 {[%emt 0:00:12]} Be6 {[%emt 0:03:43]} 26. Qe3 {[%emt 0:03:55]} Bxd5 {[%emt 0:01:00]} 27. Qxg3 {[%emt 0:00:09]} Bxb3 {[%emt 0:00:05]} 28. Rff1 {[%emt 0:00:41]} Qxb6 {[%emt 0:01:03]} 29. Qxe5 {[%emt 0:00:47]} Qh6+ {[%emt 0:00:16]} 30. Qh2 {[%emt 0:00:38]} Qd2 {[%emt 0:00:39]} 31. Qg3 {[%emt 0:02:32]} Be6 {[%emt 0:02:09]} 32. Rfd1 {[%emt 0:02:21]} Qxb2 {[%emt 0:00:28]} 33. d4 {[%emt 0:00:05]} Qe2 {[%emt 0:01:59]} 34. Qf3 {[%emt 0:01:20]} Qb5 {[%emt 0:03:31]} 35. d5 {[%emt 0:00:28]} Bd7 {[%emt 0:01:47]} 36. Rb1 {[%emt 0:01:16]} Qc5 {[%emt 0:00:04]} 37. Rxb7 {[%emt 0:00:08]} Qc8 {[%emt 0:00:04]} 38. Rdb1 {[%emt 0:08:13]} Bb5 {[%emt 0:00:03]} 39. Re7 {[%emt 0:01:25]} Qc2 {[%emt 0:00:03]} 40. Re1 {[%emt 0:00:53]} Qc5 {[%emt 0:01:21]} 41. Re5 {[%emt 0:00:31]} Bd7 {[%emt 0:00:57]} 42. Rg5 {[%emt 0:01:09]} Qe7 {[%emt 0:00:43]} 43. Qg3 {[%emt 0:00:27]} g6 {[%emt 0:00:42]} 44. d6 {[%emt 0:00:57]} Qe6 {[%emt 0:00:10]} 45. Rc5 {[%emt 0:00:35]} Rd8 {[%emt 0:00:28]} 46. Qh4 {[%emt 0:03:20]} Rb8 {[%emt 0:01:51]} 47. e5 {[%emt 0:00:28]} Rb2 {[%emt 0:01:02]} 48. Rf1 {[%emt 0:01:01]} Re2 {[%emt 0:02:37]} 49. Qd8+ {[%emt 0:05:07]} Kg7 {[%emt 0:00:09]} 50. Qf6+ {[%emt 0:01:33]} Qxf6 {[%emt 0:00:05]} 51. exf6+ {[%emt 0:00:03]} Kh6 {[%emt 0:00:45]} 52. Rc7 {[%emt 0:00:06]} Bf5 {[%emt 0:00:15]} 53. Rxf7 {[%emt 0:01:16]} Be4 {[%emt 0:00:29]} 54. Rg1 {[%emt 0:00:09]} Rd2 {[%emt 0:00:58]} 55. Re7 {[%emt 0:00:23]} Bf5 {[%emt 0:00:19]} 56. f7 {[%emt 0:00:59]} Kg7 {[%emt 0:00:09]} 57. g4 {[%emt 0:02:18]} Bd3 {[%emt 0:00:55]} 58. Rc1 {[%emt 0:00:27]} Bc2 {[%emt 0:01:38]} 59. Rf1 {[%emt 0:00:09]} 1-0